lending/lending_fUSD_20260104
["ID","MTS","AMOUNT","RATE_DAILY","PERIOD"]
[400392011,1767501037704,-161.13107127,0.00040877,7]
[400392012,1767501037714,-500.0,0.00040899,59]
[400392013,1767501037726,-451.528,0.00040899,59]
[400392015,1767501037735,-439.0,0.000409,5]
[400392017,1767501037746,-594.25206294,0.000409,30]
[400392018,1767501037755,-339.4688821,0.000409,30]
[400392019,1767501037765,-775.58008113,0.00040933,15]
[400392020,1767501037775,-278.4788631,0.00041096,2]
[400392021,1767501037784,-166.66,0.00041109,30]
[400392023,1767501037794,-1500.0,0.00041168,10]
[400392024,1767501037803,-775.58008113,0.00041278,15]
[400392025,1767501037813,-153.0,0.000415,120]
[400392026,1767501037827,-775.58008113,0.00041622,15]
[400392027,1767501037836,-500.0,0.00041716,10]
[400392029,1767501037846,-325.28102157,0.00041773,7]
[400392030,1767501037856,-1118.36466673,0.00041777,5]
[400392031,1767501037870,-473.60249656,0.00041777,5]
[400392032,1767501037883,-451.14186505,0.00041777,5]
[400392033,1767501037895,-7754.90605878,0.00041777,5]
[400392034,1767501037906,-4312.66566898,0.00041777,5]
[400392035,1767501037918,-13309.8992439,0.00041777,5]
[400392036,1767501037927,-775.58008113,0.00041967,15]
[400392037,1767501037936,-237.94392219,0.00041999,120]
[400392038,1767501037946,-418.99487624,0.00042,120]
[400392039,1767501037955,-233.88416499,0.00042,120]
[400392040,1767501037965,-212.28075456,0.00042,120]
[400392041,1767501037974,-3205.6650481,0.00042189,2]
[400392042,1767501037984,-675.94,0.00042274,30]
[400392043,1767501037993,-153.0,0.000423,120]
[400392044,1767501038003,-775.58008113,0.00042311,15]
[400392045,1767501038013,-905.19113006,0.00042339,120]
[400392046,1767501038024,-342.16,0.00042411,30]
[400392047,1767501038034,-3877.0240086,0.000426,120]
[400392048,1767501038044,-775.58008113,0.00042656,15]
[400392049,1767501038054,-500.0,0.00042799,60]
[400392050,1767501038064,-1000.0,0.000428,2]
[400392051,1767501038073,-599.274,0.00042936,60]
[400392052,1767501038084,-500.0,0.00042973,10]
[400392053,1767501038093,-359.08976974,0.00042973,10]
[400392054,1767501038103,-500.98869312,0.00042973,10]
[400392055,1767501038124,-500.0,0.00042973,10]
[400392056,1767501038141,-502.93360052,0.00042973,10]
[400392057,1767501038151,-500.98442957,0.00042973,10]
[400392058,1767501038161,-500.0,0.00042973,10]
[400392059,1767501038171,-500.0,0.00042973,10]
[400392060,1767501038182,-500.0,0.00042973,10]
[400392061,1767501038191,-500.0,0.00042973,10]
[400392062,1767501038202,-500.0,0.00042973,10]
[400392063,1767501038211,-500.0,0.00042973,10]
[400392064,1767501038222,-24852.67719575,0.00042973,15]
[400392065,1767501038231,-351.05750787,0.00042986,120]
[400392066,1767501038241,-328.71114864,0.00042999,120]
[400392067,1767501038250,-153.0,0.00043,120]
[400392068,1767501038260,-299.6,0.00043,120]
[400392069,1767501038270,-64153.4578,0.00043,120]
[400392070,1767501038291,-2419.54389123,0.00043,120]
[400392071,1767501038301,-775.58008113,0.00043,15]
[400392072,1767501038311,-404.23149482,0.00043,2]
[400392073,1767501038321,-227.94636632,0.00043,2]
[400392074,1767501038331,-243.69,0.00043054,120]
[400392075,1767501038341,-404.2314948,0.00043068,2]
[400392076,1767501038351,-227.94636631,0.00043068,2]
[400392077,1767501038361,-500.0,0.00043099,31]
[400392078,1767501038371,-500.0,0.00043099,31]
[400392079,1767501038380,-500.0,0.00043099,31]
[400392080,1767501038389,-218.13913142,0.00043099,31]
[400392081,1767501038399,-446.32521828,0.00043099,31]
[400392082,1767501038409,-157.10109623,0.000431,31]
[400392083,1767501038419,-160.34475035,0.000431,30]
[400392084,1767501038429,-165.09741426,0.000431,30]
[400392085,1767501038439,-161.7272928,0.000431,30]
[400392086,1767501038449,-53851.55485939,0.000431,120]
[400392087,1767501038463,-1284.1526221,0.000431,120]
[400392088,1767501039510,-1223.27070007,0.000431,120]
[400392090,1767501039565,-1865.2,0.000431,120]
[400392091,1767501039730,-3053.26431617,0.000431,120]
[400392092,1767501039743,-744.56141237,0.000431,120]
[400392093,1767501039786,-5816.52133088,0.000431,120]
[400392094,1767501039799,-1455.83665154,0.000431,120]
[400392100,1767501039899,-2293.18401809,0.000431,120]
[400392101,1767501039911,-1422.28525192,0.000431,120]
[400392102,1767501039923,-920.49418785,0.000431,120]
[400392103,1767501039935,-475.0705971,0.000431,120]
[400392104,1767501039947,-5939.26311087,0.000431,120]
[400392105,1767501039962,-784.68059232,0.000431,120]
[400392128,1767501043417,-314.92,0.0003988,2]
[400392129,1767501043460,-685.08,0.0003988,2]
[400392130,1767501043470,-241.15569116,0.000431,120]
[400392131,1767501043483,-3563.94,0.000431,120]
[400392136,1767501045478,-333.91386361,0.00039979,31]
[400392137,1767501045488,-166.08613639,0.00043099,31]
[400392138,1767501045589,-333.91386361,0.00043099,31]
[400392139,1767501045600,-279.13234843,0.00043099,31]
[400392140,1767501045610,-356.27341838,0.000431,120]
[400392141,1767501045646,-3423.182228,0.000431,120]
[400392142,1767501045658,-3237.7,0.000431,120]
[400392146,1767501117642,502.8322432,0.00017999,2]
[400392147,1767501117677,596.38,0.00017999,2]
[400392148,1767501117712,549.20933684,0.00017999,2]
[400392149,1767501117752,500.0,0.00017999,2]
[400392150,1767501118004,500.0,0.00017999,2]
[400392151,1767501118391,500.0,0.00017999,2]
[400392152,1767501118629,500.0,0.00017999,2]
[400392153,1767501118985,500.0,0.00017999,2]
[400392154,1767501119305,171.32521828,0.00017999,2]
[400392156,1767501137564,500.0,0.00017999,2]
[400392157,1767501137612,500.0,0.00017999,2]
[400392158,1767501137656,500.0,0.00017999,2]
[400392159,1767501137698,500.0,0.00017999,2]
[400392160,1767501137739,500.0,0.00017999,2]
[400392161,1767501137779,500.0,0.00017999,2]
[400392162,1767501137818,500.0,0.00017999,2]
[400392163,1767501137859,500.0,0.00017999,2]
[400392164,1767501137899,500.0,0.00017999,2]
[400392165,1767501137942,500.0,0.00017999,2]
[400392166,1767501137985,300.0,0.00017999,2]
[400392167,1767501138086,500.0,0.00017999,2]
[400392168,1767501138203,500.0,0.00017999,2]
[400392170,1767501156168,77121.83,0.00032876,120]
[400392172,1767501307584,299.611847,7.945e-05,2]
[400392178,1767501489547,600.0,0.0003079,120]
[400392190,1767501607042,1463.10173895,0.00030951,120]
[400392191,1767501643458,161.5281589,0.00043229,120]
[400392192,1767501687235,205.884872,0.00043229,120]
[400392193,1767501701763,226.945399,0.00043229,120]
[400392198,1767501938442,155.170829,0.00043229,65]
[400392199,1767501938724,155.170829,0.00043229,65]
[400392200,1767501939018,155.170829,0.00043229,65]
[400392201,1767501939319,155.170829,0.00043229,65]
[400392202,1767501939669,155.170829,0.00043229,65]
[400392203,1767501940099,155.170829,0.00043229,65]
[400392204,1767501940383,155.170829,0.00043229,65]
[400392205,1767501940677,155.170829,0.00043229,65]
[400392206,1767501941013,155.170829,0.00043229,65]
[400392207,1767501941311,155.170829,0.00043229,65]
[400392208,1767501941590,155.170829,0.00043229,65]
[400392209,1767501941888,155.170829,0.00043229,65]
[400392210,1767501942176,155.170829,0.00043229,65]
[400392211,1767501942483,155.170829,0.00043229,65]
[400392212,1767501942776,155.170829,0.00043229,65]
[400392213,1767501943254,155.170829,0.00043229,65]
[400392214,1767501943378,155.170829,0.00043229,65]
[400392215,1767501943674,155.170829,0.00043229,65]
[400392216,1767501943959,155.170829,0.00043229,65]
[400392217,1767501944251,155.170821,0.00043229,65]
[400392218,1767501993125,-163.84442461,0.00027695,2]
[400392219,1767502042097,-69.77148684,0.00027695,2]
[400392220,1767502042119,-300.0,0.00027916,2]
[400392221,1767502042143,-426.0,0.00028137,2]
[400392222,1767502042167,-151.0,0.00028319,2]
[400392223,1767502042189,-151.0,0.00028502,2]
[400392224,1767502042210,-339.91224863,0.0002861,2]
[400392225,1767502042231,-250.0,0.00030397,2]
[400392226,1767502042252,-300.0,0.00030397,2]
[400392227,1767502042273,-181.07093375,0.00030465,2]
[400392228,1767502049120,-163.08579552,0.00030465,2]
[400392229,1767502049145,-12.07190761,0.00030465,30]
[400392230,1767502053084,-186.33790473,0.00030465,30]
[400392231,1767502053108,-300.0,0.00030465,2]
[400392232,1767502053133,-388.45567692,0.00030537,2]
[400392233,1767502053156,-1600.0,0.00036787,3]
[400392234,1767502053181,-300.0,0.00036788,3]
[400392235,1767502053204,-400.0,0.00036788,3]
[400392236,1767502053227,-200.0,0.00038509,2]
[400392237,1767502053248,-207.4,0.00038509,2]
[400392238,1767502053270,-215.0738,0.00038509,2]
[400392239,1767502053291,-223.0315306,0.00038509,2]
[400392240,1767502053312,-231.28369723,0.00038509,2]
[400392241,1767502053333,-239.84119403,0.00038509,2]
[400392242,1767502053354,-248.71531821,0.00038509,2]
[400392243,1767502053376,-257.91778498,0.00038509,2]
[400392244,1767502053397,-267.46074303,0.00038509,2]
[400392245,1767502053418,-277.35679052,0.00038509,2]
[400392246,1767502053441,-800.0,0.00039523,5]
[400392247,1767502053462,-1000.0,0.0003988,2]
[400392248,1767502053482,-250.0,0.0004,7]
[400392249,1767502053505,-500.0,0.00040073,5]
[400392250,1767502053526,-351.94328179,0.00040073,5]
[400392251,1767502053553,-150.0,0.000401,30]
[400392252,1767502053577,-527.0,0.00040229,10]
[400392253,1767502053600,-500.0,0.00040621,5]
[400392254,1767502053622,-158.18,0.00040803,2]
[400392255,1767502053661,-500.0,0.00040821,20]
[400392256,1767502053685,-3518.59864061,0.00040833,2]
[400392257,1767502148627,250.0,0.00043229,120]
[400392258,1767502149254,250.0,0.00043229,120]
[400392259,1767502149859,250.0,0.00043229,120]
[400392260,1767502150550,250.0,0.00043229,120]
[400392261,1767502151094,250.0,0.00043229,120]
[400392262,1767502151679,250.0,0.00043229,120]
[400392263,1767502152336,250.0,0.00043229,120]
[400392264,1767502152938,250.0,0.00043229,120]
[400392272,1767502231503,-485.76562377,0.00039743,2]
[400392273,1767502231516,-604.20516633,0.00039743,2]
[400392274,1767502231527,-500.0,0.00039743,2]
[400392275,1767502231537,-150.0,0.000405,30]
[400392276,1767502231548,-228.49147285,0.00040747,2]
[400392277,1767502231559,-250.0,0.0004079,120]
[400392278,1767502231570,-265.0,0.00040832,5]
[400392279,1767502231583,-574.77918688,0.00040833,2]
[400392280,1767502231596,-886.96086678,0.00040833,2]
[400392281,1767502231609,-3145.62502986,0.00040833,2]
[400392282,1767502231623,-2267.48627587,0.00040833,2]
[400392283,1767502231636,-999.0,0.00040847,3]
[400392284,1767502231648,-250.0,0.00041241,120]
[400392285,1767502231659,-200.0,0.00041365,2]
[400392286,1767502231671,-300.0,0.00041877,5]
[400392287,1767502231683,-1000.0,0.00041878,2]
[400392288,1767502231694,-466.13,0.00042411,30]
[400392289,1767502231705,-178.88,0.00042411,30]
[400392290,1767502231716,-466.13,0.00042411,30]
[400392291,1767502231727,-178.88,0.00042411,30]
[400392292,1767502231737,-178.46,0.00042411,30]
[400392293,1767502231748,-465.12,0.00042411,30]
[400392294,1767502231764,-150.7,0.00042685,30]
[400392295,1767502231775,-181.76473652,0.000428,9]
[400392296,1767502231786,-361.222,0.000428,65]
[400392297,1767502231797,-248.3805,0.000428,2]
[400392298,1767502231807,-1000.0,0.000428,2]
[400392299,1767502231819,-187.78818163,0.00042805,15]
[400392300,1767502231831,-235.05153129,0.00042811,15]
[400392302,1767502231841,-360.02776994,0.00042813,2]
[400392304,1767502231852,-198.78143331,0.00042813,28]
[400392306,1767502231863,-187.78818162,0.00042827,15]
[400392308,1767502231874,-235.0515312,0.00042832,15]
[400392310,1767502231885,-187.78818162,0.00042848,15]
[400392312,1767502231897,-235.0515312,0.00042853,15]
[400392313,1767502231908,-187.78818162,0.0004287,15]
[400392314,1767502231920,-235.0515312,0.00042874,15]
[400392315,1767502231933,-187.78818162,0.00042892,15]
[400392316,1767502231944,-235.0515312,0.00042895,15]
[400392317,1767502231955,-300.0,0.00042899,4]
[400392318,1767502231966,-441.0,0.000429,7]
[400392319,1767502231978,-2414.52792577,0.000429,30]
[400392320,1767502231989,-8001.40079439,0.000429,2]
[400392321,1767502232002,-398.29499985,0.000429,2]
[400392322,1767502232015,-10749.83539884,0.000429,2]
[400392323,1767502232027,-868.46461215,0.000429,2]
[400392324,1767502232040,-1165.66,0.000429,2]
[400392325,1767502232052,-2108.01942602,0.000429,2]
[400392326,1767502232066,-2279.85668093,0.000429,2]
[400392327,1767502232079,-36200.76703793,0.000429,2]
[400392328,1767502232092,-1992.68654235,0.000429,2]
[400392329,1767502232111,-287.99999989,0.000429,2]
[400392333,1767502237633,-250.7765568,0.000429,2]
[400392334,1767502237691,-898.72,0.000429,2]
[400392341,1767502237987,-2358.05528498,0.000429,2]
[400392344,1767502238000,-355.31274187,0.000429,2]
[400392351,1767502238097,-1889.45118596,0.000429,2]
[400392352,1767502238110,-4932.1520001,0.000429,2]
[400392353,1767502238122,-2824.62425539,0.000429,2]
[400392354,1767502238135,-5939.7185,0.000429,2]
[400392355,1767502238148,-1599.64905104,0.000429,2]
[400392356,1767502238160,-356.71,0.000429,2]
[400392357,1767502239777,-581.10719934,0.000428,2]
[400392358,1767502239791,-418.89280066,0.000428,2]
[400392359,1767502239803,-1896.20371252,0.000429,2]
[400392360,1767502240096,-972.15998328,0.000429,2]
[400392361,1767502240110,-300.29098075,0.000429,2]
[400392362,1767502240123,-4944.5508495,0.000429,2]
[400392363,1767502240150,-1123.42602351,0.000429,2]
[400392366,1767502243460,-18.2049361,0.000429,2]
[400392367,1767502243497,-709.17,0.000429,2]
[400392368,1767502243568,-541.82394898,0.000429,2]
[400392369,1767502244458,-310.8275765,0.000429,2]
[400392399,1767502245659,-553.38530473,0.000429,2]
[400392400,1767502245673,-547.44,0.000429,2]
[400392401,1767502245685,-1081.03893058,0.000429,2]
[400392402,1767502245711,-441.08233538,0.000429,2]
[400392403,1767502245724,-15879.51192325,0.000429,2]
[400392404,1767502245736,-405.8537147,0.000429,2]
[400392405,1767502245748,-18862.97068009,0.000429,2]
[400392406,1767502245760,-5210.14308199,0.000429,2]
[400392407,1767502245772,-593.82396974,0.000429,2]
[400392408,1767502245784,-13366.030554,0.000429,2]
[400392409,1767502245858,-4296.75088854,0.000429,2]
[400392410,1767502245913,-1089.88117537,0.000429,2]
[400392475,1767503046009,-5354.10187876,0.0003,3]
[400392476,1767503050328,-281.36799468,0.00032777,67]
[400392477,1767503071707,-300.0,0.00032876,2]
[400392478,1767503071730,-1036.0,0.00032877,120]
[400392479,1767503071751,-297.99663217,0.00032877,2]
[400392480,1767503071771,-4466.00336783,0.00032877,120]
[400392481,1767503100166,500.0,0.00043229,120]
[400392482,1767503100291,500.0,0.00043229,120]
[400392483,1767503100527,500.0,0.00043229,120]
[400392484,1767503100752,500.0,0.00043229,120]
[400392485,1767503100985,500.0,0.00043229,120]
[400392486,1767503101228,500.0,0.00043229,120]
[400392487,1767503101483,500.0,0.00043229,120]
[400392488,1767503101709,500.0,0.00043229,120]
[400392489,1767503101951,500.0,0.00043229,120]
[400392490,1767503102185,497.5193307,0.00043229,120]
[400392496,1767503123543,151.0,0.00043229,65]
[400392497,1767503123868,153.241952,0.00043229,65]
[400392498,1767503237155,-638.97166131,0.00032876,3]
[400392499,1767503352129,-561.02833869,0.00032876,3]
[400392500,1767503352154,-5870.13463731,0.00032877,120]
[400392501,1767503353099,-5353.445706,0.00032877,120]
[400392504,1767503431724,-357.30360357,0.00032877,120]
[400392505,1767503431737,-1560.74755497,0.00032877,120]
[400392506,1767503431832,-1807.01762166,0.00032877,120]
[400392507,1767503431844,-15561.34750866,0.00032877,120]
[400392508,1767503431854,-250.0,0.00036164,2]
[400392509,1767503431864,-318.96671537,0.00040073,5]
[400392510,1767503431879,-425.27115385,0.00040073,5]
[400392511,1767503431889,-527.0,0.00040229,10]
[400392512,1767503431899,-1675.54114737,0.0004027,2]
[400392516,1767503437890,-301.76454383,0.0004027,2]
[400392517,1767503437900,-152.56,0.00040489,120]
[400392518,1767503437909,-152.56,0.00040589,120]
[400392519,1767503437920,-152.56,0.00040689,120]
[400392520,1767503437930,-152.56,0.00040789,120]
[400392521,1767503437940,-152.56,0.00040889,120]
[400392522,1767503437950,-26.09605585,0.0004089,120]
[400392523,1767503437962,-1457.87671966,0.0004089,120]
[400392574,1767503439449,151.0,0.00043229,65]
[400392575,1767503439765,151.0,0.00043229,65]
[400392576,1767503440060,151.0,0.00043229,65]
[400392577,1767503440073,-1129.85722449,0.0004089,120]
[400392578,1767503440083,-150.0,0.000409,30]
[400392579,1767503440093,-1079.94441464,0.00040932,120]
[400392580,1767503440104,-1982.25915616,0.00040932,120]
[400392581,1767503440116,-1937.7964292,0.00040932,120]
[400392582,1767503440126,-893.5,0.00040933,2]
[400392583,1767503440136,-152.56,0.00040989,120]
[400392584,1767503440146,-152.56,0.00041089,120]
[400392585,1767503440156,-370.7448171,0.00041147,2]
[400392586,1767503440165,-152.56,0.00041189,120]
[400392587,1767503440176,-288.978,0.00041289,60]
[400392588,1767503440186,-152.56,0.00041289,120]
[400392589,1767503440196,-152.56,0.00041389,120]
[400392590,1767503440205,-130.87222929,0.00041405,2]
[400392591,1767503440217,-774.6985844,0.00041405,2]
[400392592,1767503440342,151.0,0.00043229,65]
[400392594,1767503440910,151.0,0.00043229,65]
[400392595,1767503441308,151.0,0.00043229,65]
[400392596,1767503441548,151.0,0.00043229,65]
[400392597,1767503441871,151.0,0.00043229,65]
[400392598,1767503442163,151.0,0.00043229,65]
[400392599,1767503442457,151.0,0.00043229,65]
[400392600,1767503442741,151.0,0.00043229,65]
[400392601,1767503443093,151.0,0.00043229,65]
[400392602,1767503443406,151.0,0.00043229,65]
[400392603,1767503443424,-46.76737942,0.00041405,2]
[400392604,1767503443434,-870.53,0.00041409,2]
[400392605,1767503443445,-152.56,0.00041489,120]
[400392606,1767503443455,-152.56,0.00041589,120]
[400392607,1767503443466,-152.56,0.00041689,120]
[400392608,1767503443476,-220.51036901,0.00041692,2]
[400392609,1767503443488,-26.65284239,0.00041692,2]
[400392610,1767503443498,-152.56,0.00041789,120]
[400392611,1767503443509,-152.56,0.00041889,120]
[400392612,1767503443519,-2.17791161,0.00041989,120]
[400392613,1767503443696,184.565259,0.00043229,65]
[400392617,1767503445734,-150.38208839,0.00041989,120]
[400392618,1767503445746,-152.56,0.00042089,120]
[400392619,1767503445756,-152.56,0.00042189,120]
[400392620,1767503445766,-500.0,0.000422,120]
[400392621,1767503445776,-1320.7,0.00042274,30]
[400392622,1767503445787,-152.0,0.00042282,3]
[400392623,1767503445797,-72.27011593,0.00042289,120]
[400392624,1767503445809,-80.28988407,0.00042289,120]
[400392625,1767503445819,-152.56,0.00042389,120]
[400392626,1767503445829,-357.36,0.00042411,30]
[400392627,1767503445839,-466.13,0.00042411,30]
[400392628,1767503445849,-466.13,0.00042411,30]
[400392629,1767503445858,-466.13,0.00042411,30]
[400392630,1767503445868,-463.71,0.00042411,30]
[400392631,1767503445878,-152.56,0.00042489,120]
[400392632,1767503445888,-152.56,0.00042589,120]
[400392633,1767503445898,-150.61,0.00042685,30]
[400392634,1767503445908,-70.96011593,0.00042685,30]
[400392635,1767503446014,-79.03988407,0.00042685,30]
[400392636,1767503446024,-150.0,0.00042685,30]
[400392637,1767503446034,-150.0,0.00042685,30]
[400392638,1767503446044,-152.56,0.00042689,120]
[400392639,1767503446054,-2500.0,0.000427,2]
[400392640,1767503446064,-152.56,0.00042789,120]
[400392641,1767503446074,-500.0,0.00042798,31]
[400392642,1767503446083,-496.81391314,0.00042798,31]
[400392643,1767503446093,-156.72688359,0.00042799,31]
[400392644,1767503446103,-233.73970453,0.00042799,31]
[400392645,1767503446113,-500.0,0.00042799,120]
[400392646,1767503446122,-333.0,0.000428,7]
[400392647,1767503446132,-1000.0,0.000428,2]
[400392648,1767503446142,-14120.75252949,0.000428,2]
[400392649,1767503446154,-647.22640714,0.000428,2]
[400392650,1767503446165,-409.14193754,0.000428,2]
[400392675,1767503703159,1632.98953852,0.00016,2]
[400392676,1767503712541,178.12,0.00020775,2]
[400392677,1767503712754,178.12,0.00021868,2]
[400392679,1767503869308,248.58,0.00013699,2]
[400392680,1767503869535,248.58,0.00020187,2]
[400392706,1767504222714,500.0,0.00043246,120]
[400392710,1767504223614,549.07660459,0.00043246,120]
[400392722,1767504296532,1000.0,0.00022,3]
[400392723,1767504306564,1000.0,0.000215,3]
[400392724,1767504308335,7163.61046148,0.00018,2]
[400392725,1767504308370,1821.35,0.00018,2]
[400392747,1767504394105,571.81675067,0.00017999,2]
[400392748,1767504394153,191.49120188,0.00017999,2]
[400392749,1767504395130,500.0,0.00017999,2]
[400392750,1767504395173,500.0,0.00017999,2]
[400392751,1767504395215,500.0,0.00017999,2]
[400392752,1767504395253,381.42300219,0.00017999,2]
[400392753,1767504395290,500.0,0.00017999,2]
[400392754,1767504395329,500.0,0.00017999,2]
[400392755,1767504395369,500.0,0.00017999,2]
[400392756,1767504395411,500.0,0.00017999,2]
[400392757,1767504395448,500.0,0.00017999,2]
[400392758,1767504395488,189.66162235,0.00017999,2]
[400392759,1767504395527,195.26328667,0.00017999,2]
[400392760,1767504395571,500.0,0.00017999,2]
[400392761,1767504395612,374.55312513,0.00017999,2]
[400392762,1767504396023,613.64834502,0.00017999,2]
[400392763,1767504396066,500.0,0.00017999,2]
[400392764,1767504396111,500.0,0.00017999,2]
[400392765,1767504396150,500.0,0.00017999,2]
[400392766,1767504396205,500.0,0.00017999,2]
[400392767,1767504396253,500.0,0.00017999,2]
[400392768,1767504396298,500.0,0.00017999,2]
[400392769,1767504396341,500.0,0.00017999,2]
[400392770,1767504396384,500.0,0.00017999,2]
[400392771,1767504396425,500.0,0.00017999,2]
[400392772,1767504396466,500.0,0.00017999,2]
[400392773,1767504396509,500.0,0.00017999,2]
[400392774,1767504396553,500.0,0.00017999,2]
[400392775,1767504396595,500.0,0.00017999,2]
[400392776,1767504396647,500.0,0.00017999,2]
[400392777,1767504396689,500.0,0.00017999,2]
[400392778,1767504396731,500.0,0.00017999,2]
[400392779,1767504396772,500.0,0.00017999,2]
[400392780,1767504396813,500.0,0.00017999,2]
[400392781,1767504396855,500.0,0.00017999,2]
[400392782,1767504396898,500.0,0.00017999,2]
[400392783,1767504396940,500.0,0.00017999,2]
[400392784,1767504396983,500.0,0.00017999,2]
[400392785,1767504397029,500.0,0.00017999,2]
[400392786,1767504397070,500.0,0.00017999,2]
[400392787,1767504397118,500.0,0.00017999,2]
[400392788,1767504397163,500.0,0.00017999,2]
[400392789,1767504397205,500.0,0.00017999,2]
[400392790,1767504397246,168.92713896,0.00017999,2]
[400392804,1767504408218,-271.80377557,0.00018,2]
[400392808,1767504421885,300.0,0.00017999,2]
[400392816,1767504446500,500.0,0.00017999,2]
[400392817,1767504446719,500.0,0.00017999,2]
[400392819,1767504446761,350.0,0.00017999,2]
[400392835,1767504493137,1200.0,0.00017999,2]
[400392838,1767504514072,10350.40101997,0.00016,4]
[400392841,1767504515830,4400.0,0.00043246,120]
[400392853,1767504573102,-830.27383023,0.00018,2]
[400392861,1767504601216,300.0,0.00017999,2]
[400392862,1767504601486,1200.0,0.00017999,2]
[400392863,1767504617856,223.48826984,0.0001799,2]
[400392871,1767504631917,-15087.09408741,0.00018,2]
[400392872,1767504631929,-290.05642929,0.00018,2]
[400392873,1767504631941,-277.89497204,0.00018,2]
[400392874,1767504631956,-1613.9502996,0.00018,2]
[400392875,1767504631969,-4328.06566314,0.00018,2]
[400392876,1767504631980,-3045.52,0.00018,2]
[400392877,1767504631992,-872.66531044,0.00018,2]
[400392878,1767504632004,-660.78173265,0.00018,2]
[400392879,1767504632016,-780.71527075,0.00018,2]
[400392880,1767504632029,-8614.86124748,0.00018,2]
[400392881,1767504632043,-5554.73846656,0.00018,2]
[400392882,1767504632055,-7067.46142578,0.00018,2]
[400392883,1767504632067,-603.84235597,0.00018,2]
[400392884,1767504632078,-660.27077516,0.00018,2]
[400392885,1767504632090,-357.87831592,0.00018,2]
[400392886,1767504632102,-1024.16079093,0.00018,2]
[400392887,1767504632113,-14361.84713073,0.00018,2]
[400392888,1767504632125,-649.10427825,0.00018,2]
[400392889,1767504632137,-4208.02539024,0.00018,2]
[400392890,1767504632148,-835.19021143,0.00018,2]
[400392891,1767504632160,-567.05475244,0.00018,2]
[400392892,1767504632172,-716.94858052,0.00018,2]
[400392893,1767504632184,-1000.22428229,0.00018,2]
[400392894,1767504632196,-2152.66125016,0.00018,2]
[400392895,1767504632208,-2062.13091084,0.00018,2]
[400392896,1767504632220,-3681.56994553,0.00018,2]
[400392903,1767504634922,-151.0,0.00018,2]
[400392904,1767504635032,-201.89175405,0.00018,2]
[400392905,1767504635151,-151.0,0.00018,2]
[400392906,1767504635246,-201.89175405,0.00018,2]
[400392907,1767504637928,-9465.01389283,0.00018,2]
[400392908,1767504637946,-426.61846658,0.00018,2]
[400392911,1767504637985,-846.33812054,0.00018,2]
[400392912,1767504638048,-766.80359483,0.00018,2]
[400392913,1767504638059,-712.7394267,0.00018,2]
[400392914,1767504638071,-480.71237647,0.00018,2]
[400392915,1767504638111,-915.68180285,0.00018,2]
[400392916,1767504638123,-500.0,0.00018,2]
[400392917,1767504638135,-10516.64293417,0.00018,2]
[400392918,1767504638170,-913.64,0.00018,2]
[400392919,1767504638182,-830.62918981,0.00018,2]
[400392920,1767504638193,-639.31888652,0.00018,2]
[400392921,1767504638206,-11453.67512316,0.00018,2]
[400392922,1767504638217,-39468.99506,0.00018,2]